bitfinex/quotes_BTCUSD_20241117
["timestamp","ask_amount","ask_price","bid_price","bid_amount"]
[1731872614198,0.0017104,90081.0,90080.0,0.5898475]
[1731872614408,0.0017104,90081.0,90080.0,0.490457]
[1731872614847,0.0017104,90081.0,90080.0,0.69623801]
[1731872615052,0.0017104,90081.0,90080.0,0.79143326]
[1731872615296,0.0017104,90081.0,90080.0,0.542957]
[1731872615732,0.0017104,90081.0,90080.0,0.47587455]
[1731872615946,0.0017104,90081.0,90080.0,0.542957]
[1731872617913,0.0017104,90081.0,90080.0,0.56551899]
[1731872624609,0.0017104,90081.0,90080.0,0.81401585]
[1731872624825,0.0017104,90081.0,90080.0,0.59861781]
[1731872626832,0.0017104,90081.0,90080.0,0.59861563]
[1731872627229,0.0017104,90081.0,90080.0,0.56551899]
[1731872627669,0.0017104,90081.0,90080.0,0.59861192]
[1731872628506,0.0017104,90081.0,90080.0,0.56551899]
[1731872628936,4e-07,90081.0,90080.0,0.66568878]
[1731872629140,4e-07,90081.0,90080.0,0.59860633]
[1731872629403,4e-07,90081.0,90080.0,0.66568878]
[1731872629613,4e-07,90081.0,90080.0,0.59860633]
[1731872630234,0.06,90090.0,90080.0,0.59860633]
[1731872630235,0.0599604,90090.0,90089.0,0.3801659]
[1731872630446,0.0599604,90090.0,90089.0,0.61942845]
[1731872631746,0.0599604,90090.0,90089.0,0.86790187]
[1731872632871,0.0599604,90090.0,90089.0,0.61942845]
[1731872633375,0.0599604,90090.0,90089.0,0.86787941]
[1731872633583,0.0599604,90090.0,90089.0,0.61942845]
[1731872634469,0.0377604,90090.0,90089.0,0.61942845]
[1731872635389,0.0377604,90090.0,90089.0,0.6605732]
[1731872635606,0.0377604,90090.0,90089.0,0.90894555]
[1731872635831,0.0386159,90090.0,90089.0,0.90894555]
[1731872636041,0.0386159,90090.0,90089.0,0.6605732]
[1731872636247,0.0386159,90090.0,90089.0,0.90892088]
[1731872636939,0.0386159,90090.0,90089.0,0.90893065]
[1731872637369,0.0386159,90090.0,90089.0,0.6605732]
[1731872637810,0.0386159,90090.0,90089.0,0.5264083]
[1731872638032,0.0386159,90090.0,90089.0,0.46329075]
[1731872638279,0.0386159,90090.0,90089.0,0.45629075]
[1731872638483,0.0386159,90090.0,90089.0,0.46329075]
[1731872640005,0.0386159,90090.0,90089.0,0.45629075]
[1731872640207,0.0386159,90090.0,90089.0,0.46129075]
[1731872640425,0.0386159,90090.0,90089.0,0.61030888]
[1731872641512,0.0386159,90090.0,90089.0,0.46129075]
[1731872641723,0.0386159,90090.0,90089.0,0.61030888]
[1731872642379,0.0386159,90090.0,90089.0,0.61230888]
[1731872643022,0.0386159,90090.0,90089.0,0.61030888]
[1731872643897,0.0008555,90090.0,90089.0,0.61030888]
[1731872644101,0.0008555,90090.0,90089.0,0.46129075]
[1731872644781,0.0008555,90090.0,90089.0,0.46329075]
[1731872645415,0.0008555,90090.0,90089.0,0.61231684]
[1731872645884,0.0008555,90090.0,90089.0,0.46329075]
[1731872646146,0.0008555,90090.0,90089.0,0.61231684]
[1731872647004,0.0008555,90090.0,90089.0,0.46329075]
[1731872647438,0.0008555,90090.0,90089.0,0.46129075]
[1731872647653,0.0008555,90090.0,90089.0,0.61233671]
[1731872647864,0.0008555,90090.0,90089.0,0.46500115]
[1731872648049,0.0008555,90090.0,90089.0,0.61405611]
[1731872648282,0.0008555,90090.0,90089.0,0.46500115]
[1731872650237,0.0008555,90090.0,90089.0,0.66369199]
[1731872650438,0.0008555,90090.0,90089.0,0.51280115]
[1731872651514,0.0008555,90090.0,90089.0,0.76116471]
[1731872652156,0.0008555,90090.0,90089.0,0.54592269]
[1731872652639,0.0008555,90090.0,90089.0,0.51280115]
[1731872653086,0.0008555,90090.0,90089.0,0.76137723]
[1731872653318,0.0008555,90090.0,90089.0,0.51280115]
[1731872653538,0.0008555,90090.0,90089.0,0.54592294]
[1731872653973,0.0008555,90090.0,90089.0,0.76142389]
[1731872654185,0.0008555,90090.0,90089.0,0.51280115]
[1731872655025,0.0008555,90090.0,90089.0,0.54592572]
[1731872655694,0.0008555,90090.0,90089.0,0.51280115]
[1731872656111,0.0008555,90090.0,90089.0,0.54591604]
[1731872656767,0.0008555,90090.0,90089.0,0.5798836]
[1731872656978,0.0008555,90090.0,90089.0,0.5459301]
[1731872659392,0.0008555,90090.0,90089.0,0.4981301]
[1731872660854,0.0008555,90090.0,90089.0,0.46500115]
[1731872662106,0.0008555,90090.0,90089.0,0.49814562]
[1731872662747,0.0008555,90090.0,90089.0,0.46500115]
[1731872663880,0.0008555,90090.0,90089.0,0.49814873]
[1731872671726,0.0008555,90090.0,90089.0,0.79693299]
[1731872672145,0.0008555,90090.0,90089.0,0.49814873]
[1731872672372,0.0008555,90090.0,90089.0,0.79693299]
[1731872672778,0.0008555,90090.0,90089.0,0.72985054]
[1731872672986,0.0008555,90090.0,90089.0,0.86401544]
[1731872673206,0.0008555,90090.0,90089.0,0.94261544]
[1731872675223,0.0008555,90090.0,90089.0,0.64383118]
[1731872675443,0.0008555,90090.0,90089.0,0.9427503]
[1731872676307,0.0008555,90090.0,90089.0,0.8085854]
[1731872676527,0.0008555,90090.0,90089.0,0.64383118]
[1731872677376,0.0008555,90090.0,90089.0,0.87566785]
[1731872677823,0.0008555,90090.0,90089.0,0.49614873]
[1731872678026,0.0008555,90090.0,90089.0,0.49814873]
[1731872679159,0.0008555,90090.0,90089.0,0.79706785]
[1731872679592,0.0008555,90090.0,90089.0,0.68903118]
[1731872679816,0.0008555,90090.0,90089.0,0.68703118]
[1731872680036,0.0008555,90090.0,90089.0,0.68903118]
[1731872686182,0.0003555,90090.0,90089.0,0.68903118]
[1731872687664,0.0003555,90090.0,90089.0,1.13020482]
[1731872687877,0.0003555,90090.0,90089.0,0.68903118]
[1731872691778,5e-07,90090.0,90089.0,0.68903118]
[1731872691988,0.00171,90098.0,90089.0,0.68903118]
[1731872691989,0.00167,90098.0,90097.0,0.245991]
[1731872692166,0.0136675,90102.0,90101.0,0.222986]
[1731872692402,0.0136675,90102.0,90101.0,0.48106792]
[1731872692610,0.0136675,90102.0,90101.0,0.5119383]
[1731872692735,0.0136675,90102.0,90101.0,0.81034137]
[1731872692944,0.0136675,90102.0,90101.0,0.5119383]
[1731872695243,0.0136675,90102.0,90101.0,0.81008237]
[1731872695473,0.0136675,90102.0,90101.0,0.5119383]
[1731872696585,0.0136675,90102.0,90101.0,0.80997745]
[1731872697204,0.0136675,90102.0,90101.0,0.55313759]
[1731872698055,0.1236,90129.0,90101.0,0.55313759]
[1731872698056,0.16694955,90128.0,90115.0,0.3731339]
[1731872698272,0.16694955,90128.0,90115.0,0.66535739]
[1731872698476,0.16694955,90128.0,90115.0,0.417114]
[1731872700176,0.16694955,90128.0,90115.0,0.66520787]
[1731872701216,0.16694955,90128.0,90115.0,0.70675259]
[1731872701651,0.16694955,90128.0,90115.0,0.45865872]
[1731872702990,0.16694955,90128.0,90115.0,0.65698212]
[1731872703216,0.16694955,90128.0,90115.0,0.45865872]
[1731872703434,0.16694955,90128.0,90115.0,0.65698876]
[1731872703672,0.16694955,90128.0,90115.0,0.45865872]
[1731872703925,0.16694955,90128.0,90115.0,0.53830354]
[1731872704140,0.0491,90117.0,90115.0,0.45165872]
[1731872704558,0.0491,90117.0,90115.0,0.45665872]
[1731872704772,0.0491,90117.0,90115.0,0.47424121]
[1731872704973,0.0491,90117.0,90115.0,0.47924121]
[1731872705192,0.0491,90117.0,90115.0,0.40715876]
[1731872705433,0.0838548,90116.0,90115.0,0.38415876]
[1731872705637,0.0838548,90116.0,90115.0,0.36157627]
[1731872706522,0.0838548,90116.0,90115.0,0.38457627]
[1731872707701,0.1329548,90116.0,90115.0,0.28457627]
[1731872708861,0.1329548,90116.0,90115.0,0.15251372]
[1731872709386,0.1352823,90116.0,90115.0,0.15251372]
[1731872709616,0.083,90114.0,90113.0,0.110971]
[1731872709838,0.0031823,90116.0,90102.0,0.2236782]
[1731872709839,0.0491,90112.0,90102.0,0.2236782]
[1731872710070,0.1321,90112.0,90111.0,0.110974]
[1731872711238,0.0008548,90116.0,90105.0,0.023]
[1731872711239,0.083,90110.0,90105.0,0.023]
[1731872711467,0.0491,90107.0,90104.0,0.023]
[1731872711692,0.083,90106.0,90105.0,0.133981]
[1731872713056,0.083,90106.0,90105.0,0.24304355]
[1731872713306,0.1321,90115.0,90114.0,0.11097]
[1731872713777,0.1321,90115.0,90111.0,0.221947]
[1731872713778,0.1321,90114.0,90102.0,0.0017102]
[1731872713977,0.1321,90114.0,90104.0,0.16694955]
[1731872713978,0.243078,90108.0,90104.0,0.16694955]
[1731872714186,0.083,90106.0,90104.0,0.16694955]
[1731872714425,0.005,90109.0,90102.0,0.0017102]
[1731872714426,0.193984,90103.0,90102.0,0.0017102]
[1731872714681,0.243084,90103.0,90102.0,0.0017102]
[1731872715343,0.248084,90103.0,90102.0,0.0017102]
[1731872716395,0.1371,90103.0,90102.0,0.0017102]
[1731872716630,0.248084,90103.0,90102.0,0.0017102]
[1731872716852,0.25029977,90103.0,90102.0,0.0017102]
[1731872719559,0.25115487,90103.0,90102.0,0.0017102]
[1731872720214,0.25615487,90103.0,90102.0,0.0017102]
[1731872726154,0.13517087,90103.0,90102.0,0.1126952]
[1731872726394,0.13517087,90103.0,90102.0,0.24475775]
[1731872726395,0.00307087,90103.0,90102.0,0.24475775]
[1731872726611,0.0008551,90103.0,90102.0,0.24475775]
[1731872726848,0.0008551,90103.0,90102.0,0.38624791]
[1731872727773,0.0008551,90103.0,90102.0,0.45533036]
[1731872727976,0.0008551,90103.0,90102.0,0.45333036]
[1731872728190,0.0008551,90103.0,90102.0,0.52541281]
[1731872728421,0.0008551,90103.0,90102.0,0.53241281]
[1731872728910,0.0008551,90103.0,90102.0,0.54467022]
[1731872729130,0.0008551,90103.0,90102.0,0.56227347]
[1731872729355,0.0008551,90103.0,90102.0,0.46333036]
[1731872730024,0.0008551,90103.0,90102.0,0.48572902]
[1731872730237,0.0008551,90103.0,90102.0,0.52077133]
[1731872730887,0.0008551,90103.0,90102.0,0.51577133]
[1731872731797,0.0008548,90116.0,90115.0,0.115969]
[1731872732014,0.0008548,90116.0,90115.0,0.45015631]
[1731872732475,0.0008548,90116.0,90108.0,0.221953]
[1731872732476,0.0008548,90116.0,90107.0,0.09894311]
[1731872732679,0.0008548,90116.0,90107.0,0.10906255]
[1731872732883,0.00210346,90115.0,90107.0,0.10906255]
[1731872733086,0.00210346,90115.0,90110.0,0.110975]
[1731872733289,0.00210346,90115.0,90107.0,0.10906255]
[1731872733507,0.00210346,90115.0,90112.0,0.110972]
[1731872733793,0.00210346,90115.0,90112.0,0.110971]
[1731872734021,0.00210346,90115.0,90110.0,0.22195]
[1731872734241,0.00210346,90115.0,90108.0,0.023]
[1731872734859,0.00210346,90115.0,90110.0,0.110975]
[1731872735104,0.00210346,90115.0,90111.0,0.110973]
[1731872736641,0.11307246,90115.0,90108.0,0.133976]
[1731872736849,0.11307246,90115.0,90103.0,0.023]
[1731872736850,0.00210346,90115.0,90103.0,0.023]
[1731872737049,0.00210346,90115.0,90104.0,0.110982]
[1731872737050,0.221943,90113.0,90104.0,0.110982]
[1731872737276,0.110974,90111.0,90103.0,0.023]
[1731872737710,0.00209323,90110.0,90106.0,0.110979]
[1731872737916,0.110973,90112.0,90103.0,0.244967]
[1731872738125,0.00209927,90109.0,90105.0,0.110981]
[1731872738328,0.11097,90115.0,90107.0,0.110978]
[1731872738536,0.0008548,90116.0,90107.0,0.110978]
[1731872738537,0.00209765,90108.0,90107.0,0.110978]
[1731872738752,0.110971,90113.0,90107.0,0.110978]
[1731872738981,0.00209828,90108.0,90107.0,0.110978]
[1731872739214,0.110971,90113.0,90107.0,0.110978]
[1731872739429,0.00209874,90108.0,90107.0,0.110978]
[1731872739634,0.110971,90113.0,90107.0,0.110978]
[1731872740279,0.00210309,90112.0,90107.0,0.110978]
[1731872740494,0.00210309,90112.0,90103.0,0.023]
[1731872740714,0.110972,90113.0,90107.0,0.110978]
[1731872740934,0.00203355,90111.0,90110.0,0.110975]
[1731872741158,0.0008548,90116.0,90111.0,0.110973]
[1731872741555,0.0008548,90116.0,90115.0,0.110969]
[1731872741783,0.0008548,90116.0,90115.0,0.24303155]
[1731872741997,0.0008548,90116.0,90115.0,0.34303155]
[1731872743133,0.0008548,90116.0,90115.0,0.38418594]
[1731872748452,0.0008548,90116.0,90115.0,0.27321694]
[1731872748681,0.0008548,90116.0,90115.0,0.38418594]
[1731872749637,0.0008548,90116.0,90115.0,0.38918594]
[1731872749874,0.0008548,90116.0,90115.0,0.38418594]
[1731872753392,0.0008548,90116.0,90115.0,0.28418594]
[1731872753599,0.0008548,90116.0,90115.0,0.24303155]
[1731872755581,0.0008548,90116.0,90115.0,0.110969]
[1731872755804,0.00306566,90116.0,90115.0,0.110969]
[1731872756018,0.0008548,90116.0,90115.0,0.110969]
[1731872756227,0.00306566,90116.0,90115.0,0.110969]
[1731872756441,0.0008548,90116.0,90115.0,0.110969]
[1731872756694,0.0008548,90116.0,90103.0,0.2236762]
[1731872756695,0.00806566,90116.0,90108.0,0.244955]
[1731872756923,0.0058548,90116.0,90112.0,0.110972]
[1731872757150,0.0058548,90116.0,90109.0,0.110976]
[1731872757151,0.11097,90114.0,90109.0,0.110976]
[1731872757577,0.00220029,90113.0,90110.0,0.110975]
[1731872757801,0.1168228,90116.0,90110.0,0.110975]
[1731872758029,0.00219942,90112.0,90111.0,0.110974]
[1731872758269,0.0008548,90116.0,90102.0,0.26334746]
[1731872758270,0.0008548,90116.0,90115.0,0.110969]
[1731872763261,0.0008548,90116.0,90115.0,0.24303155]
[1731872765051,0.0008548,90116.0,90115.0,0.46513155]
[1731872765738,0.0008548,90116.0,90115.0,0.47213155]
[1731872765973,0.0008548,90116.0,90115.0,0.57106968]
[1731872766207,0.0008548,90116.0,90115.0,0.57102214]
[1731872766665,0.0008548,90116.0,90115.0,0.47213155]
[1731872768211,0.0008548,90116.0,90115.0,0.36116255]
[1731872768414,0.0008548,90116.0,90115.0,0.57102526]
[1731872768869,0.0008548,90116.0,90115.0,0.47213155]
[1731872769336,0.0008548,90116.0,90115.0,0.41933155]
[1731872772154,0.0008548,90116.0,90115.0,0.51821653]
[1731872772354,0.0008548,90116.0,90115.0,0.41933155]
[1731872772566,0.0008548,90116.0,90115.0,0.47363155]
[1731872772788,0.16694955,90146.0,90140.0,0.221875]
[1731872773004,0.16694955,90146.0,90142.0,0.133936]
[1731872773223,0.16694955,90146.0,90142.0,0.24299855]
[1731872773670,0.0008551,90153.0,90142.0,0.24299855]
[1731872781385,0.0004051,90143.0,90142.0,0.24299855]
[1731872782056,0.0004051,90143.0,90142.0,0.133936]
[1731872782996,0.0004051,90143.0,90133.0,0.1]
[1731872782997,0.046,90142.0,90137.0,0.110941]
[1731872783223,0.046,90142.0,90119.0,0.443856]
[1731872783446,0.11288425,90141.0,90136.0,0.110942]
[1731872783667,0.051,90142.0,90120.0,0.10906255]
[1731872783888,0.0019455,90140.0,90138.0,0.11094]
[1731872784095,0.00194625,90141.0,90138.0,0.11094]
[1731872784307,0.00194475,90139.0,90136.0,0.110942]
[1731872784521,0.005,90134.0,90120.0,0.10906255]
[1731872784750,0.005,90134.0,90130.0,0.11095]
[1731872784971,0.005,90134.0,90130.0,0.221901]
[1731872785204,0.005,90134.0,90133.0,0.110947]
[1731872785430,0.006941,90134.0,90133.0,0.110947]
[1731872788294,0.005,90130.0,90126.0,0.221909]
[1731872788508,0.005,90130.0,90124.0,0.221915]
[1731872788727,0.005,90130.0,90129.0,0.110952]
[1731872789152,0.00693179,90130.0,90129.0,0.110952]
[1731872789361,0.005,90128.0,90108.0,0.1]
[1731872789573,0.005,90126.0,90120.0,0.16694955]
[1731872789802,0.005,90125.0,90112.0,0.221945]
[1731872790050,0.005,90125.0,90117.0,0.110966]
[1731872790051,0.005,90124.0,90117.0,0.110966]
[1731872790269,0.005,90124.0,90112.0,0.221945]
[1731872790764,0.110961,90121.0,90116.0,0.110967]
[1731872791183,0.0019147,90120.0,90117.0,0.110966]
[1731872791402,0.005,90123.0,90117.0,0.110966]
[1731872791628,0.005,90123.0,90112.0,0.221945]
[1731872791629,0.0019162,90122.0,90112.0,0.221945]
[1731872791855,0.201568,90116.0,90099.0,0.221975]
[1731872792077,0.201568,90116.0,90104.0,0.110982]
[1731872792288,0.201568,90116.0,90104.0,0.221964]
[1731872792289,0.20347827,90116.0,90104.0,0.221964]
[1731872792496,0.20347827,90116.0,90106.0,0.110979]
[1731872792703,0.20347827,90116.0,90104.0,0.221964]
[1731872792905,0.20347827,90116.0,90099.0,0.221975]
[1731872793124,0.20347827,90116.0,90103.0,0.1126932]
[1731872793364,0.20347827,90116.0,90103.0,0.0017102]
[1731872793569,0.20347827,90116.0,90103.0,0.2236772]
[1731872793778,0.20347827,90116.0,90105.0,0.11098]
[1731872793996,0.20347827,90116.0,90103.0,0.0017102]
[1731872794204,0.24917827,90116.0,90103.0,0.0017102]
[1731872794461,0.24917827,90116.0,90103.0,0.1126932]
[1731872794694,0.24917827,90116.0,90103.0,0.0017102]
[1731872795574,0.24917827,90116.0,90103.0,0.1126932]
[1731872795782,0.24917827,90116.0,90103.0,0.0017102]
[1731872796442,0.34890676,90104.0,90103.0,0.0017102]
[1731872796668,0.55796931,90104.0,90103.0,0.0017102]
[1731872796889,0.56199473,90104.0,90103.0,0.0017102]
[1731872798854,0.59299473,90104.0,90103.0,0.0027102]
[1731872799306,0.59299473,90104.0,90103.0,0.0017102]
[1731872799307,0.62863263,90104.0,90103.0,0.0017102]
[1731872799513,0.62563263,90104.0,90103.0,0.0017102]
[1731872799729,1.08405663,90104.0,90103.0,0.0017102]
[1731872799948,1.11005663,90104.0,90103.0,0.0017102]
[1731872801203,1.10805663,90104.0,90103.0,0.0017102]
[1731872801658,1.11005663,90104.0,90103.0,0.0017102]
[1731872803632,1.10805663,90104.0,90103.0,0.0017102]
[1731872804506,1.11005663,90104.0,90103.0,0.0017102]
[1731872805148,0.51444942,90104.0,90103.0,0.0017102]
[1731872805853,0.05602542,90104.0,90103.0,0.1126942]
[1731872806077,0.00702542,90104.0,90103.0,0.1126942]
[1731872806331,0.14100742,90104.0,90103.0,0.0017102]
[1731872806776,0.03002542,90104.0,90103.0,0.0017102]
[1731872807418,0.03002542,90104.0,90103.0,0.1126942]
[1731872807654,0.005,90104.0,90103.0,0.1126942]
[1731872807865,0.005,90123.0,90104.0,0.023]
[1731872808071,0.43929785,90134.0,90104.0,0.023]
[1731872808072,0.16694955,90121.0,90120.0,0.110963]
[1731872808522,0.00259762,90121.0,90120.0,0.110963]
[1731872808728,0.005,90123.0,90122.0,0.11096]
[1731872810082,0.005,90125.0,90120.0,0.221924]
[1731872810300,0.001,90123.0,90120.0,0.221924]
[1731872810557,0.001,90123.0,90122.0,0.11096]
[1731872812111,0.001,90123.0,90119.0,0.221928]
[1731872812112,0.005,90131.0,90129.0,0.110951]
[1731872812553,0.00278759,90130.0,90129.0,0.110951]
[1731872812741,0.00778759,90130.0,90129.0,0.110951]
[1731872812968,0.00278759,90130.0,90129.0,0.24301355]
[1731872813173,0.00278759,90130.0,90129.0,0.2838475]
[1731872813401,0.0008553,90134.0,90133.0,0.209747]
[1731872813671,0.0008553,90134.0,90133.0,0.31880955]
[1731872816149,0.0008553,90134.0,90121.0,0.0758]
[1731872816358,0.0008553,90134.0,90114.0,0.0485]
[1731872816359,0.005,90128.0,90127.0,0.110954]
[1731872817242,0.0008553,90134.0,90133.0,0.110947]
[1731872817468,0.0058553,90134.0,90133.0,0.110947]
[1731872819038,0.005,90130.0,90129.0,0.332853]
[1731872819267,0.005,90132.0,90131.0,0.110949]
[1731872819474,0.0008553,90134.0,90129.0,0.221901]
[1731872819684,0.0058553,90134.0,90133.0,0.110947]
[1731872821011,0.0008553,90134.0,90133.0,0.110947]
[1731872824552,0.0008553,90134.0,90133.0,0.24300955]
[1731872824781,0.0008553,90134.0,90133.0,0.32330955]
[1731872825433,0.0008553,90134.0,90133.0,0.47280955]
[1731872836403,0.0008553,90134.0,90133.0,0.47480955]
[1731872836608,0.0008553,90134.0,90133.0,0.47280955]
[1731872837736,0.0008553,90134.0,90133.0,0.47480955]
[1731872839648,0.0008553,90134.0,90133.0,0.47980955]
[1731872841480,0.0008553,90134.0,90133.0,0.47480955]
[1731872841684,0.0008553,90134.0,90133.0,0.47980955]
[1731872842758,0.0008553,90134.0,90133.0,0.40030955]
[1731872842962,0.0008553,90134.0,90133.0,0.22000955]
[1731872843952,0.0008553,90134.0,90133.0,0.110947]
[1731872847183,0.10698415,90143.0,90130.0,0.221901]
[1731872847433,0.10698415,90143.0,90136.0,0.110942]
[1731872847642,0.17194955,90144.0,90137.0,0.110941]
[1731872847643,0.00274306,90142.0,90137.0,0.110941]
[1731872847867,0.110934,90143.0,90137.0,0.110941]
[1731872848086,0.00274306,90142.0,90137.0,0.110941]
[1731872848303,0.00274306,90142.0,90131.0,0.221897]
[1731872848487,0.110937,90141.0,90136.0,0.110943]
[1731872848779,0.005,90144.0,90133.0,0.221894]
[1731872848985,0.00308594,90140.0,90137.0,0.110941]
[1731872849188,0.005,90144.0,90126.0,0.37250297]
[1731872849403,0.00274306,90139.0,90136.0,0.110942]
[1731872849642,0.005,90144.0,90127.0,0.16694955]
[1731872849851,0.115934,90144.0,90137.0,0.110941]
[1731872850090,0.11401082,90143.0,90137.0,0.110941]
[1731872850306,0.11401082,90143.0,90135.0,0.110943]
[1731872850307,0.110937,90141.0,90135.0,0.110943]
[1731872850706,0.22494582,90143.0,90130.0,0.221901]
[1731872850707,0.00307497,90140.0,90136.0,0.110943]
[1731872851135,0.110936,90142.0,90136.0,0.110943]
[1731872851361,0.00307497,90139.0,90135.0,0.110944]
[1731872851585,0.110936,90142.0,90136.0,0.110942]
[1731872851793,0.00307497,90138.0,90136.0,0.110942]
[1731872852004,0.110936,90142.0,90136.0,0.110942]
[1731872852440,0.00307624,90141.0,90136.0,0.110942]
[1731872853092,0.11401424,90141.0,90135.0,0.110944]
[1731872853322,0.11401424,90141.0,90132.0,0.221896]
[1731872853323,0.00307624,90141.0,90132.0,0.221896]
[1731872853550,0.11401424,90141.0,90132.0,0.221896]
[1731872853749,0.110938,90140.0,90134.0,0.110945]
[1731872853960,0.11401324,90141.0,90134.0,0.110944]
[1731872854171,0.11401324,90141.0,90135.0,0.110944]
[1731872854172,0.110937,90141.0,90135.0,0.110944]
[1731872854393,0.00307624,90140.0,90135.0,0.110944]
[1731872855087,0.00307624,90140.0,90132.0,0.221896]
[1731872855088,0.11401424,90140.0,90132.0,0.221896]
[1731872855324,0.11401424,90140.0,90128.0,0.221905]
[1731872855325,0.00307624,90140.0,90129.0,0.443808]
[1731872855539,0.005,90137.0,90117.0,0.1067102]
[1731872855772,0.110948,90132.0,90126.0,0.110955]
[1731872855996,0.110948,90133.0,90125.0,0.110955]
[1731872856218,0.110948,90133.0,90117.0,0.0017102]
[1731872856219,0.0030535,90131.0,90127.0,0.110954]
[1731872856445,0.0030535,90130.0,90126.0,0.110954]
[1731872856655,0.110947,90133.0,90118.0,0.221929]
[1731872856859,0.0030535,90132.0,90127.0,0.110953]
[1731872857070,0.0030535,90132.0,90128.0,0.110953]
[1731872857285,0.115945,90135.0,90132.0,0.110948]
[1731872857286,0.005,90135.0,90132.0,0.110948]
[1731872857498,0.005,90135.0,90129.0,0.110951]
[1731872857707,0.00305092,90134.0,90129.0,0.110951]
[1731872858174,0.00305092,90134.0,90130.0,0.11095]
[1731872858397,0.00305092,90134.0,90130.0,0.110949]
[1731872859025,0.11399692,90134.0,90128.0,0.110953]
[1731872859234,0.11399692,90134.0,90126.0,0.0017102]
[1731872859235,0.00305092,90134.0,90129.0,0.110951]
[1731872859642,0.11399692,90134.0,90128.0,0.110953]
[1731872859846,0.00305092,90134.0,90127.0,0.332863]
[1731872860051,0.00305092,90134.0,90126.0,0.0017102]
[1731872860648,0.00299086,90134.0,90126.0,0.0017102]
[1731872860847,0.11393686,90134.0,90126.0,0.0017102]
[1731872861055,0.11393686,90134.0,90129.0,0.11095]
[1731872861056,0.00299086,90134.0,90129.0,0.11095]
[1731872861253,0.00299086,90134.0,90133.0,0.110947]
[1731872861458,0.0008551,90143.0,90137.0,0.110941]
[1731872861459,0.005,90142.0,90137.0,0.110941]
[1731872861633,0.17194955,90141.0,90127.0,0.332863]
[1731872861835,0.00826915,90141.0,90137.0,0.110941]
[1731872862097,0.005,90139.0,90132.0,0.221895]
[1731872862318,0.005,90139.0,90126.0,0.11077275]
[1731872862319,0.00826915,90141.0,90126.0,0.11077275]
[1731872862499,0.005,90142.0,90139.0,0.110939]
[1731872862740,0.005,90136.0,90132.0,0.110947]
[1731872863196,0.005,90136.0,90130.0,0.221901]
[1731872863396,0.005,90136.0,90126.0,0.33268275]
[1731872863397,0.00327313,90135.0,90134.0,0.110945]
[1731872863573,0.00327313,90135.0,90128.0,0.332859]
[1731872863803,0.005,90136.0,90126.0,0.11077275]
[1731872863930,0.00326135,90134.0,90133.0,0.110946]
[1731872864333,0.00326135,90134.0,90127.0,0.221909]
[1731872864334,0.005,90136.0,90126.0,0.11077275]
[1731872864638,0.00326296,90135.0,90134.0,0.110945]
[1731872865190,0.110939,90140.0,90134.0,0.110945]
[1731872865191,0.005,90136.0,90134.0,0.110945]
[1731872865398,0.00327474,90135.0,90134.0,0.110945]
[1731872865692,0.005,90136.0,90134.0,0.110945]
[1731872866034,0.005,90136.0,90135.0,0.110944]
[1731872867758,0.005,90136.0,90131.0,0.221899]
[1731872867976,0.005,90136.0,90126.0,0.11077275]
[1731872868189,0.005,90136.0,90135.0,0.110944]
[1731872868385,0.005,90136.0,90128.0,0.221906]
[1731872868386,0.005,90136.0,90133.0,0.221893]
[1731872868587,0.005,90136.0,90135.0,0.110944]
[1731872868810,0.005,90136.0,90134.0,0.110945]
[1731872869368,0.005,90136.0,90126.0,0.11077275]
[1731872869647,0.005,90136.0,90129.0,0.110952]
[1731872869860,0.005,90136.0,90133.0,0.110945]
[1731872870039,0.005,90136.0,90134.0,0.110945]
[1731872873158,0.005,90137.0,90134.0,0.110945]
[1731872873353,0.005,90136.0,90134.0,0.110945]
[1731872875503,0.005,90136.0,90129.0,0.0017102]
[1731872875892,0.22189,90135.0,90129.0,0.0017102]
[1731872876096,0.11095,90131.0,90129.0,0.0017102]
[1731872876300,0.110947,90133.0,90129.0,0.0017102]
[1731872876508,0.00352767,90130.0,90129.0,0.0017102]
[1731872876720,0.22189,90135.0,90129.0,0.0017102]
[1731872876721,0.110946,90134.0,90129.0,0.0017102]
[1731872876929,0.00352767,90130.0,90129.0,0.0017102]
[1731872877129,0.110947,90133.0,90129.0,0.0017102]
[1731872877674,0.110949,90131.0,90129.0,0.0017102]
[1731872878158,0.00352767,90130.0,90129.0,0.0017102]
[1731872878805,0.11095,90130.0,90129.0,0.0017102]
[1731872879016,0.11447767,90130.0,90129.0,0.0017102]
[1731872880300,0.00352767,90130.0,90129.0,0.0017102]
[1731872880544,0.110949,90131.0,90129.0,0.0017102]
[1731872880778,0.00352767,90130.0,90129.0,0.0017102]
[1731872880997,0.11447767,90130.0,90129.0,0.0017102]
[1731872881934,0.11947767,90130.0,90129.0,0.0017102]
[1731872882344,0.00352767,90130.0,90129.0,0.1126622]
[1731872882759,0.00352767,90130.0,90129.0,0.0017102]
[1731872882760,0.005,90130.0,90129.0,0.0017102]
[1731872882963,0.00851895,90130.0,90129.0,0.0017102]
[1731872883445,0.00351895,90130.0,90129.0,0.0017102]
[1731872884947,0.00851895,90130.0,90129.0,0.0017102]
[1731872885629,0.00351895,90130.0,90129.0,0.0017102]
[1731872885862,0.005,90131.0,90130.0,0.11095]
[1731872886291,0.005,90131.0,90129.0,0.1126612]
[1731872886946,0.005,90131.0,90130.0,0.11095]
[1731872887715,0.005,90132.0,90130.0,0.11095]
[1731872887918,0.005,90131.0,90130.0,0.11095]
[1731872889439,0.005,90133.0,90130.0,0.11095]
[1731872889639,0.005,90133.0,90129.0,0.0017102]
[1731872889640,0.0008552,90136.0,90135.0,0.110944]
[1731872889880,0.0008552,90136.0,90134.0,0.110944]
[1731872890751,0.0008552,90136.0,90135.0,0.110944]
[1731872896397,0.0008552,90136.0,90135.0,0.193744]
[1731872896605,0.0008552,90136.0,90135.0,0.33080655]
[1731872897261,0.0008552,90136.0,90135.0,0.38020655]
[1731872902887,0.0008552,90136.0,90135.0,0.48220655]
[1731872903197,0.0008552,90136.0,90135.0,0.73508838]
[1731872903437,0.0008552,90136.0,90135.0,0.48720655]
[1731872904535,0.0008552,90136.0,90135.0,0.73475284]
[1731872905380,0.0008552,90136.0,90135.0,0.48720655]
[1731872906510,0.0008552,90136.0,90135.0,0.68532052]
[1731872907129,0.0008552,90136.0,90135.0,0.48720655]
[1731872907616,0.0008552,90136.0,90135.0,0.63577361]
[1731872907822,0.0008552,90136.0,90135.0,0.48720655]